bitfinex/quotes_SOLUSD_20250305
["timestamp","ask_amount","ask_price","bid_price","bid_amount"]
[1741217949442,1.6463,146.79,146.71,100.2999]
[1741217949832,1.6463,146.79,146.71,126.86705646]
[1741217950839,1.6463,146.79,146.71,120.05095646]
[1741217951042,1.6463,146.79,146.71,100.2999]
[1741217951251,1.6463,146.79,146.71,412.2999]
[1741217951437,1.6463,146.79,146.71,437.43612319]
[1741217952652,1.6463,146.79,146.71,437.57828476]
[1741217953151,1.6463,146.79,146.71,278.72793362]
[1741217953657,1.6463,146.79,146.71,279.15441833]
[1741217953961,1.7084463,146.81,146.77,18.32012319]
[1741217954134,1.7084463,146.81,146.78,24.32012319]
[1741217954323,1.7084463,146.81,146.78,239.12002319]
[1741217954525,1.7084463,146.81,146.8,0.14216157]
[1741217954730,1.7084463,146.81,146.8,38.32012319]
[1741217955039,1.7084463,146.81,146.8,20.0]
[1741217955734,1.7084463,146.81,146.8,26.8119]
[1741217955931,1.7084463,146.81,146.8,278.72373362]
[1741217956232,1.7084463,146.81,146.8,590.72373362]
[1741217957158,0.7084463,146.81,146.8,590.72373362]
[1741217958549,0.7084463,146.81,146.8,572.07408476]
[1741217958956,0.7084463,146.81,146.8,571.26218476]
[1741217960041,0.7084463,146.81,146.8,86.2999]
[1741217960960,0.7084463,146.81,146.8,80.2999]
[1741217962060,0.7084463,146.81,146.77,80.2999]
[1741217963058,0.7084463,146.81,146.77,392.2999]
[1741217963235,0.7084463,146.81,146.77,80.2999]
[1741217963750,0.7084463,146.81,146.78,0.14216157]
[1741217964058,0.7084463,146.81,146.78,234.6927751]
[1741217964237,0.7084463,146.81,146.78,233.26218476]
[1741217964562,0.7084463,146.81,146.78,214.94206157]
[1741217964755,0.7084463,146.81,146.78,214.7999]
[1741217965344,0.7084463,146.81,146.78,221.6127]
[1741217965959,0.7084463,146.81,146.78,214.7999]
[1741217966141,0.7084463,146.81,146.78,533.6127]
[1741217967455,0.7084463,146.81,146.8,20.0]
[1741217968146,0.7084463,146.81,146.8,100.44206157]
[1741217968351,0.7084463,146.81,146.8,118.76218476]
[1741217968868,0.7084463,146.81,146.8,253.26218476]
[1741217969239,0.7384463,146.81,146.8,253.26218476]
[1741217969460,0.7384463,146.81,146.8,260.07408476]
[1741217971163,0.7384463,146.81,146.8,572.07408476]
[1741217974188,4.63e-05,146.81,146.8,279.15021833]
[1741217975593,0.033,146.87,146.85,0.14216157]
[1741217975758,0.033,146.87,146.86,25.95154078]
[1741217976161,91.46142998,147.01,146.91,18.32012319]
[1741217976386,10.66142998,147.01,146.92,0.14216157]
[1741217976558,10.66142998,147.01,146.92,18.46228476]
[1741217976759,10.66142998,147.01,146.93,1.42868789]
[1741217977174,10.66142998,147.01,146.93,8.23438789]
[1741217977555,1.6091,147.02,146.93,26.55451108]
[1741217977773,10.66142998,147.03,146.99,0.14216157]
[1741217977976,10.66142998,147.03,146.99,19.89033672]
[1741217978158,10.66142998,147.03,146.98,19.74817351]
[1741217978367,10.66142998,147.03,146.98,20.0]
[1741217978884,10.66142998,147.03,146.95,19.74850691]
[1741217979097,18.64964886,147.02,146.92,1.42849994]
[1741217979385,6.148,147.0,146.93,20.0]
[1741217979559,6.148,147.0,146.91,1.42878575]
[1741217979761,6.148,147.0,146.91,19.74890894]
[1741217979959,6.148,147.0,146.91,1.42878575]
[1741217980482,18.64964886,146.99,146.89,7.58884487]
[1741217980683,18.64964886,146.99,146.86,86.3336]
[1741217980684,99.44964886,146.99,146.87,25.90896806]
[1741217980884,99.44964886,146.99,146.88,18.46228476]
[1741217981060,99.44964886,146.99,146.89,19.74911175]
[1741217981456,99.44964886,146.99,146.89,1.42898856]
[1741217981656,99.44964886,146.99,146.89,0.14216157]
[1741217982666,99.44964886,146.99,146.87,24.48012319]
[1741217982667,100.89712555,146.99,146.87,35.34849622]
[1741217982865,80.8,146.98,146.88,30.61778731]
[1741217983071,80.8,146.98,146.92,20.0]
[1741217983265,80.8,146.98,146.89,29.18849622]
[1741217983466,6.178,147.0,146.9,1.42899512]
[1741217983685,80.8,146.99,146.88,1.57114039]
[1741217983886,80.8,146.99,146.88,30.75963661]
[1741217984289,18.64964886,146.98,146.88,30.75963661]
[1741217985088,18.64964886,146.98,146.9,20.0]
[1741217986183,6.178,147.0,146.91,30.75975153]
[1741217986473,6.178,147.0,146.92,29.18849622]
[1741217986785,6.178,147.0,146.91,30.61758996]
[1741217986961,6.178,147.0,146.89,30.61729358]
[1741217987168,86.978,147.0,146.89,30.61729358]
[1741217987569,86.978,147.0,146.9,29.18849622]
[1741217987874,86.978,147.0,146.89,30.61729358]
[1741217988072,86.978,147.0,146.89,1.42879736]
[1741217988395,86.978,147.0,146.88,29.18849622]
[1741217988396,18.64964886,146.99,146.88,1.42893142]
[1741217988867,18.64964886,146.99,146.89,29.18849622]
[1741217989378,86.978,147.0,146.9,30.61752304]
[1741217990805,80.8,146.99,146.9,29.18849622]
[1741217991376,80.8,146.99,146.89,341.18849622]
[1741217992189,80.8,146.98,146.89,312.0]
[1741217992394,80.8,146.98,146.88,80.2999]
[1741217993207,80.8,146.98,146.88,87.1079]
[1741217993376,80.8,146.98,146.88,80.2999]
[1741217994212,20.25654886,146.97,146.88,80.2999]
[1741217994375,80.8,146.96,146.88,80.3329]
[1741217995604,80.8,146.96,146.88,87.141]
[1741217996104,80.8,146.96,146.88,80.3329]
[1741218001383,80.8,146.96,146.88,87.1411]
[1741218001885,80.8,146.96,146.88,80.3329]
[1741218002295,80.8,146.96,146.88,87.1411]
[1741218002707,1.6069,146.97,146.88,88.57027357]
[1741218003226,1.6069,146.97,146.88,117.75876979]
[1741218003605,1.6069,146.97,146.88,88.57027357]
[1741218004404,1.6069,146.97,146.88,80.3329]
[1741218005224,1.6069,146.97,146.88,87.1409]
[1741218005717,1.6069,146.97,146.9,18.24590566]
[1741218006430,1.6069,146.97,146.89,19.67506226]
[1741218006720,1.6069,146.97,146.9,6.8071]
[1741218007299,1.6069,146.97,146.9,318.8071]
[1741218007499,1.6369,146.97,146.9,318.8071]
[1741218007916,1.6369,146.97,146.89,6.8077]
[1741218008130,1.6369,146.97,146.88,86.5329]
[1741218008312,1.6369,146.97,146.88,93.341]
[1741218008499,1.6369,146.97,146.89,1.4291357]
[1741218009000,1.6369,146.97,146.9,18.24590566]
[1741218010222,1.6369,146.97,146.91,6.8068]
[1741218010528,1.6369,146.97,146.91,87.1067]
[1741218010825,0.0001,146.97,146.96,59.6304576]
[1741218011130,10.66142998,147.04,147.02,0.14216157]
[1741218011306,10.66142998,147.04,147.03,18.24590566]
[1741218011732,11.32285998,147.05,147.03,18.38806723]
[1741218012027,1.5242,147.15,147.04,31.40670566]
[1741218012028,42.64571995,147.09,147.04,31.40670566]
[1741218012222,42.64571995,147.09,147.05,18.24590566]
[1741218012601,42.64571995,147.09,147.04,42.28035217]
[1741218013025,42.64571995,147.09,147.04,13.1608]
[1741218013530,42.64571995,147.09,147.04,42.28035217]
[1741218013896,42.64571995,147.09,147.04,13.1608]
[1741218014126,42.64571995,147.09,147.04,42.28035217]
[1741218014305,42.64571995,147.09,147.04,13.1608]
[1741218014503,42.64571995,147.09,147.04,325.1608]
[1741218015629,1.7630703,147.1,147.04,325.1608]
[1741218015929,1.7630703,147.1,147.05,1.4276135]
[1741218016120,1.7630703,147.1,147.05,30.54716567]
[1741218018038,1.7630703,147.1,147.06,6.7999]
[1741218018934,1.7630703,147.1,147.05,35.91975217]
[1741218020343,1.7930703,147.1,147.05,35.91975217]
[1741218021041,1.7930703,147.1,147.04,13.1207]
[1741218021536,1.7930703,147.1,147.04,42.24025217]
[1741218021738,1.7930703,147.1,147.06,29.11955217]
[1741218022115,1.7930703,147.1,147.07,29.11955217]
[1741218023144,1.7930703,147.1,147.04,30.1228]
[1741218023440,1.7930703,147.1,147.07,35.91875217]
[1741218024012,1.7930703,147.1,147.07,347.91875217]
[1741218024221,1.7930703,147.1,147.07,318.7992]
[1741218024641,1.7930703,147.1,147.05,6.8004]
[1741218025236,1.7930703,147.1,147.04,42.24025217]
[1741218025616,1.7930703,147.1,147.04,6.8007]
[1741218025822,1.7930703,147.1,147.03,35.95365217]
[1741218026236,1.7930703,147.1,147.03,0.033]
[1741218026621,1.7930703,147.1,147.03,6.8342]
[1741218027113,1.7930703,147.1,147.03,0.033]
[1741218027731,1.7930703,147.1,147.05,29.11955217]
[1741218028053,1.7930703,147.1,147.04,29.11955217]
[1741218028220,1.7930703,147.1,147.03,0.033]
[1741218028425,7.6237,147.09,147.03,0.033]
[1741218028625,99.44964886,147.08,147.03,0.033]
[1741218029148,80.8,147.07,147.03,0.033]
[1741218029325,80.8,147.06,147.03,0.033]
[1741218029645,99.44964886,147.05,147.03,0.033]
[1741218029822,100.89712555,147.04,147.03,0.033]
[1741218030023,1.5746,147.02,146.95,80.2999]
[1741218030265,87.3811,147.01,146.94,6.32]
[1741218030848,99.44964886,147.0,146.94,6.32]
[1741218031419,18.64964886,146.98,146.9,109.41945217]
[1741218031625,80.8,146.97,146.9,80.2999]
[1741218032133,80.8,146.97,146.9,109.41945217]
[1741218032340,80.8,146.97,146.9,80.2999]
[1741218033146,80.8,146.97,146.9,116.22675217]
[1741218033365,80.8,146.97,146.9,80.2999]
[1741218033661,80.8,146.97,146.9,116.22665217]
[1741218034348,80.8,146.97,146.9,428.22665217]
[1741218034851,80.8,146.97,146.9,392.2999]
[1741218036169,80.8,146.97,146.9,428.22665217]
[1741218036535,80.8,146.97,146.9,399.1071]
[1741218037750,80.8,146.97,146.9,428.22665217]
[1741218038868,80.8,146.97,146.9,399.1071]
[1741218039343,80.8,146.97,146.9,428.22665217]
[1741218039972,80.8,146.97,146.9,399.1071]
[1741218041367,80.8,146.97,146.9,392.2999]
[1741218042869,1.5397,146.96,146.9,392.2999]
[1741218043463,1.5397,146.96,146.89,0.033]
[1741218043775,80.8,146.95,146.89,0.033]
[1741218044545,80.8,146.95,146.9,0.033]
[1741218045947,6.5304,146.94,146.9,0.033]
[1741218047279,87.3304,146.94,146.9,0.033]
[1741218048550,20.09712555,146.93,146.9,0.033]
[1741218048748,1.6184,146.92,146.9,0.033]
[1741218048952,100.89712555,146.91,146.9,0.033]
[1741218049167,20.09712555,146.91,146.9,0.033]
[1741218049753,18.64964886,146.9,146.89,0.033]
[1741218050283,20.09712555,146.91,146.89,0.033]
[1741218050649,20.09712555,146.91,146.88,0.033]
[1741218051080,18.64964886,146.9,146.88,0.033]
[1741218051260,20.09712555,146.89,146.88,0.033]
[1741218052269,20.09712555,146.89,146.8,25.08406046]
[1741218052270,20.21164886,146.88,146.8,0.033]
[1741218052484,18.64964886,146.86,146.8,0.033]
[1741218052786,18.64964886,146.84,146.8,0.033]
[1741218052996,18.64964886,146.82,146.8,0.033]
[1741218053363,3.00947669,146.88,146.8,0.033]
[1741218053364,18.64964886,146.87,146.8,0.033]
[1741218053564,18.64964886,146.85,146.8,0.033]
[1741218053759,1.44747669,146.84,146.8,0.033]
[1741218054292,18.64964886,146.82,146.8,0.033]
[1741218054492,20.09712555,146.82,146.8,0.033]
[1741218055267,99.44964886,146.81,146.8,0.033]
[1741218055599,20.26664886,146.81,146.8,0.033]
[1741218057280,1.5275,146.86,146.8,0.033]
[1741218057480,82.24747669,146.85,146.8,0.033]
[1741218057784,18.64964886,146.84,146.8,0.033]
[1741218060078,80.8,146.84,146.8,0.033]
[1741218060791,1.5275,146.86,146.8,18.27226046]
[1741218060997,1.5275,146.86,146.8,0.033]
[1741218061368,80.8,146.87,146.8,25.08416046]
[1741218061599,82.3756,146.89,146.82,18.23926046]
[1741218061802,82.3756,146.89,146.83,18.23926046]
[1741218062390,80.8,146.89,146.83,18.23926046]
[1741218062707,80.8,146.89,146.83,337.04966046]
[1741218063078,80.8,146.89,146.83,330.23926046]
[1741218063709,80.8,146.89,146.83,312.0]
[1741218064007,18.64964886,146.88,146.8,86.9803]
[1741218064513,80.8,146.89,146.81,18.23926046]
[1741218065012,80.8,146.88,146.82,25.05026046]
[1741218065924,80.8,146.88,146.81,25.05066046]
[1741218066386,80.8,146.88,146.82,18.23926046]
[1741218066886,80.8,146.88,146.82,330.23926046]
[1741218067087,80.8,146.88,146.82,337.05016046]
[1741218067614,1.5756,146.93,146.84,18.23926046]
[1741218067903,80.8,146.92,146.84,18.23926046]
[1741218068285,99.44964886,146.91,146.82,105.35006046]
[1741218068902,99.44964886,146.91,146.82,105.35016046]
[1741218070408,0.033,146.89,146.83,18.23926046]
[1741218070612,0.033,146.89,146.83,410.53916046]
[1741218070811,0.033,146.89,146.83,392.2999]
[1741218071185,0.033,146.89,146.83,80.2999]
[1741218072019,0.033,146.89,146.83,87.1103]
[1741218072913,0.033,146.89,146.83,80.2999]
[1741218074014,0.033,146.89,146.81,105.38046046]
[1741218074316,0.033,146.89,146.81,417.38046046]
[1741218074494,0.033,146.89,146.81,399.1412]
[1741218074921,0.033,146.89,146.81,417.38046046]
[1741218075917,0.033,146.89,146.82,18.23926046]
[1741218076115,0.033,146.89,146.82,25.04986046]
[1741218076619,0.033,146.89,146.82,6.8106]
[1741218078826,0.033,146.89,146.82,25.04986046]
[1741218079023,0.033,146.89,146.81,392.3299]
[1741218079024,18.64964886,146.87,146.81,0.03]
[1741218079232,18.64964886,146.85,146.81,0.03]
[1741218079438,18.64964886,146.83,146.81,0.03]
[1741218079651,20.09712555,146.82,146.81,0.03]
[1741218080722,18.64964886,146.82,146.81,0.03]
[1741218082524,18.64964886,146.82,146.81,0.0001]
[1741218083330,18.64964886,146.82,146.8,0.0001]
[1741218083527,21.59852555,146.81,146.8,0.0001]
[1741218083731,28.25722555,146.81,146.78,0.0001]
[1741218088331,20.15104886,146.81,146.78,0.0001]
[1741218088846,80.8,146.8,146.78,0.0001]
[1741218093739,18.64964886,146.79,146.78,0.0001]
[1741218094947,99.44964886,146.79,146.78,0.0001]
[1741218098726,80.8,146.79,146.78,0.0001]
[1741218099725,99.44964886,146.79,146.78,0.0001]
[1741218101232,80.8,146.82,146.78,0.0001]
[1741218101725,18.64964886,146.81,146.78,0.0001]
[1741218104147,80.8,146.87,146.78,0.0001]
[1741218104320,80.8,146.86,146.78,80.3]
[1741218104619,18.64964886,146.85,146.78,80.3]
[1741218105228,18.64964886,146.85,146.78,87.1124]
[1741218106753,18.64964886,146.85,146.78,87.1124]
[1741218107448,94.58236556,146.89,146.79,24.55946046]
[1741218107824,18.64964886,146.88,146.79,24.55946046]
[1741218108249,18.64964886,146.88,146.79,6.3202]
[1741218109152,18.64964886,146.88,146.79,24.55946046]
[1741218109356,18.64964886,146.88,146.8,6.8119]
[1741218110547,0.033,146.85,146.8,6.8119]
[1741218111548,0.033,146.85,146.8,25.05116046]
[1741218112645,0.033,146.85,146.82,18.23926046]
[1741218113160,0.033,146.85,146.81,18.23926046]
[1741218113451,0.033,146.85,146.81,25.05026046]
[1741218113658,0.033,146.85,146.82,19.97512203]
[1741218114039,0.033,146.85,146.82,19.83296046]
[1741218115942,0.033,146.85,146.82,26.64386046]
[1741218116563,0.033,146.85,146.83,18.23926046]
[1741218117053,0.033,146.85,146.84,31.52876046]
[1741218117225,0.033,146.85,146.84,252.73082203]
[1741218117431,0.033,146.89,146.87,20.0]
[1741218117754,0.033,146.89,146.88,18.23926046]
[1741218118558,0.033,146.89,146.87,111.97623585]
[1741218118854,0.033,146.89,146.87,100.2999]
[1741218119852,0.033,146.89,146.87,80.2999]
[1741218121146,0.033,146.89,146.84,6.4794]
[1741218125362,0.033,146.89,146.84,13.2894]
[1741218125757,0.033,146.89,146.84,6.4794]
[1741218129168,0.033,146.89,146.84,318.4794]
[1741218129738,0.033,146.89,146.84,6.4794]
[1741218131969,0.033,146.89,146.84,24.73167177]
[1741218132164,0.033,146.89,146.84,6.4794]
[1741218132771,0.033,146.89,146.84,318.4794]
[1741218132950,0.033,146.89,146.84,325.2895]
[1741218135262,0.033,146.89,146.86,18.25227177]
[1741218135468,0.033,146.89,146.87,18.25227177]
[1741218135773,0.033,146.89,146.87,98.55217177]
[1741218136362,0.033,146.89,146.88,18.25227177]
[1741218136554,0.033,146.89,146.87,98.55217177]
[1741218136763,0.033,146.89,146.87,80.2999]
[1741218139069,0.033,146.89,146.88,0.14216157]
[1741218139374,0.033,146.89,146.88,18.39443334]
[1741218139753,0.033,146.89,146.88,233.19433334]
[1741218140380,0.033,146.89,146.88,240.00253334]
[1741218140574,0.033,146.95,146.88,254.08545634]
[1741218140877,0.033,146.95,146.94,11.6734612]
[1741218141052,0.033,146.95,146.94,91.9733612]
[1741218141467,0.033,146.95,146.94,80.2999]
[1741218145175,0.033,146.95,146.92,410.53240339]
[1741218146978,0.033,146.95,146.92,98.53240339]
[1741218147180,0.033,146.95,146.92,80.2999]
[1741218151155,0.033,146.95,146.9,80.2999]
[1741218153394,18.68264886,146.95,146.9,80.2999]
[1741218153694,18.68264886,146.95,146.87,86.4999]
[1741218153907,99.48264886,146.95,146.87,398.4999]
[1741218154503,99.48264886,146.95,146.87,80.2999]
[1741218155792,99.48264886,146.95,146.85,24.41250339]
[1741218156110,99.48264886,146.95,146.87,20.0]
[1741218156693,99.48264886,146.95,146.84,113.44890339]
[1741218156896,80.8,146.94,146.84,113.44890339]
[1741218157516,80.8,146.94,146.84,425.44890339]
[1741218158707,80.8,146.94,146.85,0.03]
[1741218159892,80.8,146.94,146.85,18.26250339]
[1741218160096,80.8,146.94,146.85,98.56240339]
[1741218160311,18.64964886,146.93,146.85,98.56240339]
[1741218160502,18.64964886,146.93,146.86,18.23250339]
[1741218160816,0.033,146.95,146.89,38.23250339]
[1741218160991,0.033,146.95,146.89,118.53240339]
[1741218161501,0.033,146.95,146.9,6.8073]
[1741218161999,0.033,146.95,146.89,107.1075]
[1741218162812,0.033,146.95,146.89,118.7821152]
[1741218163015,0.033,146.95,146.9,312.0]
[1741218163998,0.033,146.95,146.9,318.8072]
[1741218166118,0.033,146.95,146.9,399.1071]
[1741218166817,0.033,146.95,146.9,392.2999]
[1741218168321,0.033,146.95,146.9,399.1071]
[1741218169526,0.033,146.95,146.9,87.1071]
[1741218171053,0.033,146.95,146.9,80.2999]
[1741218172522,0.033,146.95,146.9,392.2999]
[1741218172728,0.033,146.95,146.9,87.1071]
[1741218175824,0.033,146.95,146.9,399.1071]
[1741218179434,0.033,146.95,146.9,87.1071]
[1741218183134,18.68264886,146.95,146.9,80.2999]
[1741218183519,18.68264886,146.95,146.88,0.03]
[1741218184340,18.68264886,146.95,146.88,6.8381]
[1741218184544,18.68264886,146.95,146.88,18.5127152]
[1741218185549,0.033,146.95,146.92,11.81677677]
[1741218185723,0.033,146.95,146.92,226.61667677]
[1741218186221,0.033,146.95,146.92,538.61667677]
[1741218186639,0.033,146.95,146.94,20.0]
[1741218187740,0.033,146.95,146.94,26.8054]
[1741218189715,0.033,146.95,146.94,419.1053]
[1741218190517,0.033,146.95,146.94,436.8799152]
[1741218190727,0.033,146.95,146.94,125.02207677]
[1741218190951,0.033,146.95,146.94,126.45044118]
[1741218192854,0.0001,146.95,146.94,280.02657475]
[1741218193040,0.033,147.0,146.99,0.14216157]
[1741218193348,0.033,147.0,146.99,228.04468094]
[1741218193563,0.033,147.0,146.99,226.61667677]
[1741218193748,0.033,147.0,146.99,538.61667677]
[1741218194121,0.033,147.0,146.99,545.41977677]
[1741218195651,0.033,147.0,146.99,564.06942563]
[1741218195843,0.033,147.0,146.99,564.49591034]
[1741218196053,0.033,147.0,146.99,572.75931034]
[1741218198257,0.033,147.0,146.99,553.68317677]
[1741218201659,0.033,147.0,146.99,241.68317677]
[1741218202547,0.033,147.0,146.99,260.75931034]
[1741218205059,0.033,147.0,146.99,572.33282563]
[1741218205364,0.033,147.0,146.99,553.68317677]
[1741218207374,0.033,147.0,146.99,572.33282563]
[1741218207971,0.033,147.0,146.99,553.68317677]
[1741218209862,0.033,147.0,146.99,545.41977677]
[1741218211573,0.033,147.0,146.99,551.47977677]
[1741218213061,0.033,147.0,146.99,416.8376152]
[1741218213464,0.033,147.0,146.99,416.97977677]
[1741218215455,0.03,147.03,147.02,20.0]
[1741218215661,0.03,147.03,147.02,246.4745152]
[1741218215861,0.03,147.03,147.02,234.7999]
[1741218216688,0.03,147.03,147.02,246.4745152]
[1741218217484,0.03,147.03,147.02,253.2762152]
[1741218217783,0.03,147.03,147.02,253.41837677]
[1741218219083,0.03,147.03,147.02,565.41837677]
[1741218224100,0.03,147.03,147.02,571.43837677]
[1741218227189,0.03,147.03,147.02,539.6216]
[1741218227812,0.03,147.03,147.02,392.2999]
[1741218227987,0.03,147.03,147.02,80.2999]
[1741218237211,0.03,147.03,147.0,0.033]
[1741218237712,0.03,147.03,147.0,6.8356]
[1741218238614,0.03,147.03,147.0,0.033]
[1741218238998,0.03,147.03,147.02,31.6746152]
[1741218239219,1.7630703,147.1,147.02,246.4745152]
[1741218239427,1.7630703,147.1,147.05,0.14216157]
[1741218239721,1.7630703,147.1,147.06,17.6746152]
[1741218239926,1.7630703,147.1,147.07,312.0]
[1741218240423,1.7630703,147.1,147.06,6.0]
[1741218243306,1.7630703,147.1,147.06,318.0]
[1741218245496,1.7630703,147.1,147.07,11.6746152]
[1741218245902,1.7630703,147.1,147.08,11.6746152]
[1741218246139,1.7630703,147.1,147.08,91.9745152]
[1741218246319,1.7630703,147.1,147.09,6.7985]
[1741218246518,1.7630703,147.1,147.09,18.4731152]
[1741218248309,1.7630703,147.1,147.09,98.7730152]
[1741218248516,1.7630703,147.1,147.09,100.20017496]
[1741218248708,1.7630703,147.1,147.09,412.20017496]
[1741218248905,1.7630703,147.1,147.09,410.7730152]
[1741218250226,1.7630703,147.1,147.09,545.41517677]
[1741218251229,0.03,147.18,147.12,20.0]
[1741218251404,0.03,147.18,147.12,111.9745152]
[1741218252313,0.432685,147.18,147.13,6.7967]
[1741218253331,0.432685,147.18,147.13,18.4713152]
[1741218253650,0.432685,147.18,147.13,6.7967]
[1741218254319,0.432685,147.18,147.15,312.0]
[1741218257011,0.432685,147.18,147.14,6.0]
[1741218258030,1.960785,147.18,147.13,80.2999]
[1741218259427,80.8,147.17,147.08,80.2999]
[1741218259939,9.46506169,147.18,147.08,80.2999]
[1741218259940,80.8,147.16,147.08,80.2999]
[1741218260254,80.8,147.16,147.06,80.2999]
[1741218260450,82.24747669,147.16,147.06,80.2999]
[1741218261233,82.24747669,147.16,147.07,11.6746152]
[1741218261423,80.8,147.16,147.07,11.6746152]
[1741218261624,82.24747669,147.16,147.06,80.2999]
[1741218262547,80.8,147.15,147.06,80.2999]
[1741218262827,6.491,147.13,147.04,80.2999]
[1741218263026,18.64964886,147.11,147.0,92.0075152]
[1741218263229,82.24747669,147.1,147.0,80.3329]
[1741218263850,18.64964886,147.09,147.0,80.3329]
[1741218264726,18.64964886,147.07,147.0,0.033]
[1741218264924,82.24747669,147.06,147.0,0.033]
[1741218266333,99.44964886,147.05,147.0,0.033]
[1741218266541,99.44964886,147.05,146.94,0.03]
[1741218266542,6.491,147.02,146.94,0.03]
[1741218266725,18.64964886,147.0,146.94,0.03]
[1741218266921,82.4341,146.99,146.94,0.03]
[1741218267157,82.24747669,146.98,146.94,0.03]
[1741218267739,1.6341,146.99,146.94,0.03]
[1741218270555,6.491,147.02,146.94,214.8299]
[1741218270758,1.5715,147.03,146.96,18.23571721]
[1741218271056,1.5715,147.03,146.95,18.23571721]
[1741218272846,1.5715,147.03,146.95,98.53561721]
[1741218273569,1.5715,147.03,146.95,105.34031721]
[1741218273768,1.5715,147.03,146.96,18.23571721]
[1741218273969,1.5715,147.03,146.95,105.34031721]
[1741218274151,1.5715,147.03,146.95,80.2999]
[1741218274754,80.8,147.02,146.94,0.03]
[1741218281881,18.64964886,147.01,146.94,0.03]
[1741218282299,80.8,147.02,146.94,0.03]
[1741218282450,80.8,147.02,146.95,18.23571721]
[1741218283372,80.8,147.02,146.96,20.0]
[1741218283890,80.3,147.02,146.96,20.0]
[1741218285073,80.3,147.02,146.97,6.8041]
[1741218285276,1.6015,147.03,146.97,6.8041]
[1741218285877,1.6015,147.03,146.98,18.23571721]
[1741218286372,0.03,147.03,146.99,18.23571721]
[1741218286574,0.03,147.03,146.99,98.53561721]
[1741218287061,0.03,147.03,147.0,6.8027]
[1741218290785,0.03,147.03,147.0,87.1026]
[1741218291279,0.03,147.03,147.0,80.2999]
[1741218291782,18.17964886,147.06,147.0,80.2999]
[1741218292364,81.8727,147.07,146.96,135.54691721]
[1741218292365,80.3,147.05,146.96,135.54691721]
[1741218292564,80.3,147.05,146.97,6.8041]
[1741218293273,80.3,147.05,146.97,25.03981721]
[1741218295778,80.3,147.05,146.97,6.8041]
[1741218295980,80.3,147.05,146.97,25.03981721]
[1741218296482,80.3,147.05,146.99,6.8031]
[1741218296666,18.64964886,147.06,146.99,87.103]
[1741218297299,18.64964886,147.06,146.99,80.2999]
[1741218298909,18.64964886,147.06,146.99,87.1026]
[1741218302010,18.64964886,147.06,146.99,80.3329]
[1741218302185,18.67964886,147.06,146.99,80.3329]
[1741218303311,18.64964886,147.04,146.99,0.033]
[1741218303607,26.53874886,147.02,146.94,0.03]
[1741218303811,18.64964886,147.0,146.94,0.03]
[1741218303990,1.44747669,146.99,146.94,0.03]
[1741218304189,18.64964886,146.97,146.94,0.03]
[1741218305186,18.64964886,146.97,146.88,0.03]
[1741218305187,18.64964886,146.95,146.88,0.03]
[1741218305502,87.91667669,146.94,146.88,0.03]
[1741218305694,18.64964886,146.93,146.88,0.03]
[1741218306006,1.44747669,146.92,146.88,0.03]
[1741218306186,80.3,146.93,146.88,0.03]
[1741218307313,18.64964886,146.92,146.88,0.03]
[1741218308195,80.3,146.93,146.88,0.03]
[1741218308393,1.5006,146.96,146.88,0.03]
[1741218308611,80.3,146.95,146.88,0.03]
[1741218309195,90.94025857,146.95,146.88,20.03]
[1741218309393,1.5006,146.96,146.88,98.55290864]
[1741218309593,12.10531858,146.97,146.91,18.25300864]
[1741218309890,12.10531858,146.97,146.91,80.2999]
[1741218310091,18.64964886,146.99,146.91,80.2999]
[1741218310294,1.5728,147.0,146.91,80.2999]
[1741218310496,1.5728,147.0,146.91,100.15180864]